Cogmind - Beta 16 @@@ ROGUE MODE // 2026.01.16 @ 17:37:17 Player: PDX-G8 Result: Destroyed by G-34 Mercenary with Small Laser Performance ------------- Evolutions (0) 0 Regions Visited (1) 200 Robots Destroyed (7) 35 Value Destroyed (128) 128 Prototype IDs (0) 0 Alien Tech Used (0) 0 Bonus (0) 0 TOTAL SCORE: 363 Bonus ------- None Cogmind --------- Core Integrity 0/250 Matter 265/300 Energy 99/100 System Corruption 0% Temperature Cool (12) Movement Core (100) Ox1 Location -10/Materials Parts ------- > --- POWER (1) -------- (None) > --- PROPULSION (2) --- (None) > --- UTILITY (2) ------ Small Storage Unit > --- WEAPON (2) ------- (None) > --- INVENTORY (8) ---- Ion Engine Structural Scanner Peak State ------------ > --- POWER ------------ Light Ion Engine > --- PROPULSION ------- Wheel Compact Wheel > --- UTILITY ---------- Small Storage Unit Seismic Detector > --- WEAPON ----------- Assault Rifle Light Assault Rifle > --- INVENTORY -------- Ion Engine Light Assault Rifle [Rating: 7] Favorites ----------- Power Light Ion Engine Engine Light Ion Engine Propulsion Wheel Wheel Wheel Utility Small Storage Unit Device Seismic Detector Storage Small Storage Unit Weapon Light Assault Rifle Ballistic Gun Light Assault Rifle Launcher Grenade Launcher Build | -11 -10 ------- Run | Yrd Mat Slots Evolved . | . . Power . | . . Propulsion . | . . Utility . | . . Weapon . | . . Parts Attached 9 | 7 2 Power 1 | 1 . Engine 1 | 1 . Core . | . . Reactor . | . . Propulsion 2 | 2 . Treads . | . . Leg . | . . Wheel 2 | 2 . Hover . | . . Flight . | . . Utility 2 | 2 . Device 1 | 1 . Storage 1 | 1 . Processor . | . . Hackware . | . . Protection . | . . Artifact . | . . Weapon 4 | 2 2 Energy Gun . | . . Energy Cannon . | . . Ballistic Gun 3 | 2 1 Ballistic Cannon . | . . Launcher 1 | . 1 Special Weapon . | . . Impact Weapon . | . . Slashing Weapon . | . . Piercing Weapon . | . . Special Melee Weapon . | . . Unidentified Prototypes . | . . Parts Lost 8 | . 8 Power 1 | . 1 Propulsion 2 | . 2 Utility 1 | . 1 Weapon 4 | . 4 Highest Loss Streak 8 | . 8 To Critical Strikes . | . . Average Backups 2 | 1 3 Power . | . 1 Propulsion . | . . Utility . | . . Weapon 1 | . 1 Tool/Special . | . . Unused Backups 2 | . 2 Power 1 | . 1 Propulsion . | . . Utility 1 | . 1 Weapon . | . . Tool/Special . | . . Average Slot Usage (%) 75 | . 75 Engine 8 | . 8 Wheel 18 | . 18 Device 10 | . 10 Storage 14 | . 14 Ballistic Gun 22 | . 22 Peak Build Rating 7 | 7 7 Average Rating 5 | 5 5 On Entrance 3 | . 7 Avg Prop Armor Cover (%) . | . . Naked Turns . | . . Heaviest Build 12 | 12 12 Greatest Support 26 | 26 26 Greatest Overweight (x) 2 | . 2 Average Overweight (x) . | . . Largest Inventory Capacity 8 | 8 8 Average Capacity 7 | 7 8 Most Carried 4 | 2 4 Average Carried 2 | 1 3 Final Capacity 8 | 8 8 Final Carried 2 | 2 2 Class Distribution -------------------- 100% | Mutant Dominant Class ---------------- Mutant | -10/Materials Resources | -11 -10 ----------- Run | Yrd Mat Matter Collected 312 | 285 27 Remotely . | . . Salvage Created 150 | 13 137 Parts 14 | 4 10 Haulers Intercepted . | . . Recyclers Shooed . | . . Parts Field Recycled . | . . Retrieved Matter . | . . Parts Self-Destructed . | . . Prevented . | . . Parts Restored . | . . Kills | -11 -10 ------- Run | Yrd Mat Combat Hostiles Destroyed 5 | . 5 Guns 2 | . 2 AOE 3 | . 3 Classes Destroyed 4 | 1 3 Tunneler 1 | 1 . Mechanic 1 | . 1 Swarmer 3 | . 3 Grunt 2 | . 2 Best Kill Streak 5 | 1 5 Combat Bots Only 4 | . 4 Max Kills in Single Turn 3 | 1 3 Gunslinging . | . . Exploded 3 | . 3 Melee . | . . Uniques/NPCs Destroyed . | . . Combat | -11 -10 -------- Run | Yrd Mat Hostile Shots Fired 118 | . 118 Missed 30 | . 30 Hits 88 | . 88 Projectile 88 | . 88 Damage Taken 870 | . 870 Core 254 | . 254 Absorbed by Shields . | . . Core Remaining (%) 100 | 100 . Volleys Fired 22 | 4 18 Largest 2 | 2 2 Hottest 50 | 40 50 Shots Fired 43 | 8 35 Gun 41 | 8 33 Cannon . | . . Launcher 2 | . 2 Special . | . . Kinetic 41 | 8 33 Thermal . | . . Explosive 2 | . 2 Electromagnetic . | . . Robot Hit Streak 5 | 2 5 Robot Miss Streak 3 | 1 3 Penetration Max . | . . Secondary Targets 1 | . 1 Max Gunslinging Chain 1 | . 1 Shots Hit Robots 24 | 5 19 Core Hits 12 | 2 10 Critical Kills . | . . Critical Parts Destroyed . | . . Critical Strikes . | . . Melee Attacks . | . . Impact . | . . Slashing . | . . Piercing . | . . Sneak Attacks . | . . Combat Hostiles . | . . Follow-up Attacks . | . . Damage Inflicted 489 | 45 444 Guns 218 | 45 173 Cannons . | . . Explosions 271 | . 271 Melee . | . . Ramming . | . . Kinetic 218 | 45 173 Thermal . | . . Explosive 271 | . 271 Electromagnetic . | . . Impact . | . . Slashing . | . . Piercing . | . . Highest Corruption . | . . Average Corruption . | . . Corruption Purged . | . . Corruption Blocked . | . . Overload Shots . | . . Overflow Damage . | . . Projectiles . | . . Explosions . | . . Melee . | . . Knockbacks . | . . Impact . | . . Kinetic . | . . Secondary . | . . Self-Inflicted Damage 11 | . 11 Shots 1 | . 1 Rammed . | . . Targets Rammed . | . . Kicked . | . . Crushed . | . . Highest Temperature 36 | . 36 Average Temperature 9 | . 9 Received Heat Transfer 282 | . 282 Siege Activations . | . . Martial Activations . | . . Shielding Activations . | . . Robots Disrupted . | . . Combat Hostiles . | . . Robots Corrupted . | . . Combat Hostiles . | . . Parts Fried . | . . Impact Corruptions . | . . Robots Melted . | . . Combat Hostiles . | . . Parts Melted . | . . Heat Transferred . | . . Parts Sabotaged . | . . Parts Stolen . | . . Parts Stripped . | . . Power Chain Reactions . | . . Alert | -11 -10 ------- Run | Yrd Mat Maximum Alert Level . | . . Low Security (%) 100 | 100 100 Level 1 . | . . Level 2 . | . . Level 3 . | . . Level 4 . | . . Level 5 . | . . High Security . | . . Max Security . | . . Peak Influence 88 | 5 88 Initial . | . . Average 14 | . 19 Influence Increases 153 | 5 148 Destroy 0b10 Robot/C 100 | . 100 Destroy 0b10 Robot/NC 10 | 5 5 Destroy Leader 10 | . 10 Successful Hack 12 | . 12 Disable Machine 15 | . 15 Destroy Structure 6 | . 6 Influence Decreases 107 | 5 102 Time Decay 57 | 5 52 Lost Part 50 | . 50 Squads Dispatched 3 | . 3 Investigation 1 | . 1 Extermination . | . . Reinforcement 2 | . 2 Assault . | . . Garrison . | . . Intercept . | . . Searches Triggered . | . . Construction Impeded . | . . Haulers Reinforced . | . . Active Scanning Responses . | . . Cargo Convoy Interrupts . | . . Stealth | -11 -10 --------- Run | Yrd Mat Distress Signals 1 | . 1 Communications Jammed . | . . Distress Signals . | . . Times Spotted 14 | . 14 Peak Tracking Total 7 | . 7 Tactical Retreats . | . . Traps | -11 -10 ------- Run | Yrd Mat Traps Triggered 1 | . 1 Indirectly . | . . Trap Hack Attempts . | . . Triggered . | . . Disarmed . | . . Reprogrammed . | . . Reused . | . . Traps Extracted . | . . Installed . | . . Triggered . | . . Machines | -11 -10 ---------- Run | Yrd Mat Machines Disabled 1 | . 1 Max in Single Turn 1 | . 1 Machines Repaired . | . . Machines Dismantled . | . . Machines Sabotaged . | . . Overloaded Fab Kills . | . . Hacking | -11 -10 --------- Run | Yrd Mat Machines Accessed 3 | . 3 Terminals 3 | . 3 Fabricators . | . . Repair Stations . | . . Recycling Units . | . . Scanalyzers . | . . Garrison Access . | . . Total Hacks 7 | . 7 Successful 2 | . 2 Failed 5 | . 5 Catastrophic 1 | . 1 Database Lockouts . | . . Manual 2 | . 2 Terminals 7 | . 7 Fabricators . | . . Repair Stations . | . . Recycling Units . | . . Scanalyzers . | . . Garrison Access . | . . Terminal Hacks 2 | . 2 Terminal Index 1 | . 1 Registered Components 1 | . 1 Fabricator Hacks . | . . Repair Station Hacks . | . . Recycling Unit Hacks . | . . Scanalyzer . | . . Garrison Access Hacks . | . . Unauthorized Hacks . | . . Terminals . | . . Fabricators . | . . Repair Stations . | . . Recycling Units . | . . Scanalyzers . | . . Garrison Access . | . . Data Cores Recovered . | . . Used . | . . Hacking Detections 3 | . 3 Full Trace Events . | . . Feedback Events . | . . Feedback Blocked . | . . Robot Schematics Acquired . | . . Robots Built . | . . Authchips . | . . Time . | . . Total Robot Build Rating . | . . Part Schematics Acquired . | . . Parts Built . | . . Authchips . | . . Time . | . . Total Part Build Rating . | . . Part Studies Acquired . | . . Parts Repaired . | . . Time . | . . Parts Recycled . | . . Recycled Matter . | . . Retrieved Matter . | . . Retrieved Components . | . . Parts Scanalyzed . | . . Part Schematics Acquired . | . . Parts Damaged . | . . Bothacking | -11 -10 ------------ Run | Yrd Mat Used RIF Installer . | . . Robots Hacked . | . . Non-combat . | . . Combat . | . . Robot Hacks Applied . | . . Relay Couplers Released . | . . Fabnet Peak Effective % . | . . Robots Rewired . | . . Allies Hacked . | . . Hacks Repelled . | . . Allies | -11 -10 -------- Run | Yrd Mat Total Allies . | . . Largest Group . | . . Highest-Rated Group . | . . Highest-Rated Ally . | . . Total Orders . | . . Ally Attacks . | . . Total Damage . | . . Kills . | . . Allies Corrupted . | . . Allies Melted . | . . Intel | -11 -10 ------- Run | Yrd Mat Active Infowar (turns) 120 | 11 109 Seismic 120 | 11 109 Robot Analysis Total . | . . Derelict Logs Recovered . | . . Drone Launches . | . . Drone Recoveries . | . . Exploration | -11 -10 ------------- Run | Yrd Mat Turns Passed 200 | 53 147 Spaces Moved 133 | 34 99 Core 35 | 1 34 Treads . | . . Legs . | . . Wheels 98 | 33 65 Hover . | . . Flight . | . . Fastest Speed 50 | 50 90 Average Speed 92 | 87 93 Slowest Speed 150 | 90 150 Overloaded Moves . | . . Propulsion Burnouts . | . . Robots Hopped . | . . Potential Cave-ins . | . . Cave-ins Triggered . | . . Exploration Rate (%) 13 | 3 24 Regions Visited 1 Branch Regions . Pre-discovered Areas . | . . Known Exits Taken . | . . Unknown Exits Taken 1 | 1 . Scrap Searched . | . . Spaces Dug . | . . Terrain Destroyed 6 | . 6 Melee . | . . Projectile . | . . AOE 6 | . 6 Terrain Rammed . | . . Walls Destroyed . | . . Machines Disabled . | . . Actions | -11 -10 --------- Run | Yrd Mat Total 168 | 46 122 Wait 1 | . 1 Move 132 | 33 99 Hop . | . . Pick Up 4 | 2 2 Fast Attach 7 | 7 . Attach 2 | . 2 Detach . | . . Swap . | . . Drop . | . . Fire 22 | 4 18 Melee . | . . Ram . | . . Kick . | . . Crush . | . . Escape Stasis . | . . Rewire . | . . Trap . | . . Miscellaneous . | . . Route ------- -11/Scrapyard -10/Materials History --------- Turn | Location | Event 16 | -11/Scrapyard | Discovered new exit (range 16) 54 | -11/Scrapyard | Entered Materials 162 | -10/Materials | Core integrity fell below 50% 182 | -10/Materials | Core integrity fell below 20% 201 | -10/Materials | Destroyed by G-34 Mercenary with Small Laser Last Messages --------------- Acquired 16 matter. Assault Rifle destroyed. U-05 Engineer works on Hadron Collector. Wheel destroyed. Lgt. Assault Rifle destroyed. G-34 Mercenary destroyed. Terminal disabled. S-10 Pest destroyed. Seismic Detector destroyed. M-13 Machinist destroyed. U-05 Engineer lays Concrete. Grenade Launcher destroyed. U-05 Engineer lays Concrete. W-16 Scout sends out distress signal. U-05 Engineer builds a Wall. U-05 Engineer lays Concrete. Lgt. Assault Rifle destroyed. U-05 Engineer lays Concrete. U-05 Engineer builds a Wall. U-05 Engineer lays Concrete. Map ----- +----------------------------------------------------+ | ???????????????????????????????????????????? | | ????????????????!??????????????????????????? | | ???????????????????????????????????????????? | | ???????????????????????????????????????????? | | ???????????????????????????????????????????? | | ???????????????????????????????????????????? | | ???????????????????????????????????????????? | | ???????????????????????????????????????????? | | ???????????????????????????????????????????? | | ???????????????????????????????????????????? | | ????????????????? ?????????????????????????? | | ?????????????!? ?????????????????????????? | | ???????????? !! ?????????????????????????? | | ????????????? s ?????????????????????????? | | ????????????? ss????????????????????????? | | ?????????????# ????????????????????????? | | ????????!????# ????????????????????????? | | ?????????????# ????????????????????????? | | ?????????????+ w ????????????????????????? | | ?????????????# ????????????????????????? | | ?????????????# ????????????????????????? | | ?????????????# ##??????????????????????? | | ?????????????# #??????????????????????? | | ?????????????# ??????????????????????? | | ?????????????# #??????????????????????? | | ?????????????# @#???????????????????? | | ?????????????# #?###########???????? | | ?????????????# #?# #???????? | | ?????????????# #?# """ """ #???????? | | ?????????????# #?# """ """ #???????# | | ????????????## #?# """ """ #???????# | | ????????????# #?# #???????# | | ????????????## ### #???????+ | | ##############u g + #???????# | | # ## gg### #???????# | | # + *== u #?#####/#####???????# | | # #%*[%%! ##### #??????????# | | # """ =# ! "" #??????????# | | # "" =+ "T" " #??######### | | # *# #### #??# + | | # # #??######??# # | | # # #??????????# # | | # # #??????????# # | | ########## #???#??????# #### | | ?????????# """ #???#"?????###+#####??? | | ?????????# """ #???#""??????# ######## | | ?????????# """ #???? ?????# # | | ??????#### #######/###### # | | ??????# # | | ??????# + "" | +----------------------------------------------------+ Best States ------------- Heat Dissipation 25 Energy Generation 10 Energy Capacity 125 Matter Stores 299 Matter Capacity 300 Sight Range 16 Terrain Scan Density 10 Evasion (%) 44 Item Schematics ----------------- None Robot Schematics ------------------ None Fabricated ------------ Nothing Repaired ---------- Nothing Studied --------- None Alien Tech Used ----------------- None Achievements -------------- None Challenges ------------ None Game ------ Seed CompactZipShooter Manual? 0 Play Time 00:06:45 Cumulative 19.8 hours Start 2026.01.16 @ 17:32:56 End 2026.01.16 @ 17:37:17 Sessions 1 Manual Loads 0 Difficulty Rogue Special Mode None Game No. 18 Rogue 18 Adventurer 0 Explorer 0 Win Type - Total 0 Types 0/0/0/0/0/0/0/0/0/0 Lore% 11 Gallery% 15 Achievement% 15 Wizard Run 0 Options --------- Layout 0 ASCII 0 Keyboard 0 Movement Numpad Keybinds 0 Fullscreen 2 Font 18/SmallcapsGlow Map View 76x50 Zoom Use 0% Tactical HUD 0 Map Filters NONE Filters NONE Steam 1 RUN: c4fa3bc8-16bd-4aed-90c6-3d79feea9b45